[Event "Stay Safe Play From Home 173"]
[Site "T#646330Emanuel Laske"]
[Date "2020.05.25"]
[Round "1"]
[White "Justwatch"]
[Black "SecantFX"]
[Result "0-1"]
[WhiteElo "1722"]
[BlackElo "1887"]
[Annotator "NA RC"]
[PlyCount "42"]
[EventDate "2020.05.25"]
[EventType "swiss (blitz)"]
[TimeControl "60"]

1. e4 {[%emt 0:00:02]} b6 {[%emt 0:00:04]} 2. Nf3 {[%emt 0:00:00]} Bb7 {[%emt 0:00:00]} 3. Nc3 {[%emt 0:00:00]} c5 {[%emt 0:00:00]} 4. Bc4 {[%emt 0:00:01]} Nc6 {[%emt 0:00:00]} 5. Bxf7+ {[%emt 0:00:01]} Kxf7 {[%emt 0:00:01]} 6. Ng5+ {[%emt 0:00:01]} Ke8 {[%emt 0:00:01]} 7. Qh5+ {[%emt 0:00:00]} g6 {[%emt 0:00:01]} 8. Qf3 {[%emt 0:00:00]} Nf6 {[%emt 0:00:01]} 9. e5 {[%emt 0:00:01]} Nxe5 {[%emt 0:00:00]} 10. Qf4 {[%emt 0:00:01]} d6 {[%emt 0:00:02]} 11. O-O {[%emt 0:00:02]} Bg7 {[%emt 0:00:02]} 12. Ne6 {[%emt 0:00:01]} Qd7 {[%emt 0:00:01]} 13. Nxg7+ {[%emt 0:00:01]} Kf7 {[%emt 0:00:00]} 14. Nf5 {[%emt 0:00:04]} gxf5 {[%emt 0:00:01]} 15. d3 {[%emt 0:00:02]} e6 {[%emt 0:00:01]} 16. Bd2 {[%emt 0:00:01]} Rhg8 {[%emt 0:00:01]} 17. Rae1 {[%emt 0:00:01]} Rxg2+ {[%emt 0:00:01]} 18. Kh1 {[%emt 0:00:00]} Rg4+ {[%emt 0:00:00]} 19. f3 {[%emt 0:00:02]} Rxf4 {[%emt 0:00:01]} 20. Bxf4 {[%emt 0:00:00]} Nxf3 {[%emt 0:00:02]} 21. Rxf3 {[%emt 0:00:01]} Bxf3+ {[%emt 0:00:01] Justwatch terk eder (Lag: Av=0.31s, max=0.5s)} 0-1